[Event "US Masters 2022"]
[Site "Charlotte"]
[Date "2022.11.25"]
[Round "3.9"]
[White "Bodek, Michael"]
[Black "Macieja, Bartlomiej"]
[Result "1/2-1/2"]
[ECO "B72"]
[WhiteElo "2427"]
[BlackElo "2514"]
[Annotator "TA"]
[PlyCount "82"]
[EventDate "2022.11.23"]
[EventType "swiss"]
[EventCountry "USA"]
[SourceTitle "playchess.com"]
[Source "ChessBase"]
[SourceQuality "1"]
[TimeControl "5400+30"]

{[%evp 20,82,0,0,0,0,0,0,4,-15,18,19,17,23,28,20,27,11,21,8,20,18,13,17,0,0,0,0,0,0,0,0,0,0,0,0,0,0,0,0,0,-10,-14,-33,0,0,0,-1,-1,-1,0,-1,-1,-1,-2,-4,0,0,0,0,0,0,0,0,0]} 1. e4 {[%emt 0:00:03]} c5 {[%emt 0:00:10]} 2. Nf3 {[%emt 0:00:12]} Nc6 {[%emt 0:00:04]} 3. Nc3 {[%emt 0:00:21]} g6 {[%emt 0:00:10]} 4. d4 {[%emt 0:01:02]} cxd4 {[%emt 0:00:09]} 5. Nxd4 {[%emt 0:00:05]} Bg7 {[%emt 0:00:03]} 6. Be3 {[%emt 0:00:09]} Nf6 {[%emt 0:00:19]} 7. Bc4 {[%emt 0:01:59]} O-O {[%emt 0:00:53]} 8. Bb3 {[%emt 0:01:24]} d6 {[%emt 0:00:14]} 9. h3 {[%emt 0:00:59]} Na5 {[%emt 0:00:15][%cal Bc6a5,Ba5c4,Bc4b2][%mdl 32] is the new trend.} 10. O-O {[%emt 0:22:01]} b6 {[%emt 0:00:05]} 11. Qd3 {[%emt 0:02:23]} Bb7 {[%emt 0:00:55] B72: Sicilian Dragon: 6 Be3, lines with h3+Bc4 and sidelines.} 12. Rad1 {[%emt 0:04:25]} Rc8 {[%emt 0:13:14] [#]} 13. f3 $146 {[%emt 0:05:29]} ({Predecessor:} 13. Nde2 Nd7 14. Bd4 Ne5 15. Qg3 Nac6 16. Be3 Ba6 17. Rfe1 Nc4 18. Bc1 Kh8 19. f4 {0-1 (50) Steel,H (2414)-Motylev,A (2658) Fufeng 2017}) 13... Qc7 {[%emt 0:13:21]} 14. Rf2 {[%emt 0:12:07]} Nc4 {[%emt 0:16:27]} 15. Ndb5 {[%emt 0:05:11][%csl LRa7,LRc7]} Nxb2 $1 {[%emt 0:01:17]} 16. Nxc7 {[%emt 0:00:34]} Nxd3 {[%emt 0:00:14]} 17. cxd3 {[%emt 0:00:34] [#] Black must now prevent N3d5.} Rxc7 {[%emt 0:00:03]} 18. Nb5 {[%emt 0:00:17][%csl LRa7,LRc7]} Rd7 {[%emt 0:12:10]} 19. Nxa7 {[%emt 0:00:42]} Bxe4 {[%emt 0:00:09]} 20. dxe4 {[%emt 0:03:06] And now Nc6 would win.} ({Much worse is} 20. Bxb6 Bd5 21. Bc4 Ra8 $17) 20... Rxa7 {[%emt 0:00:05]} 21. Bxb6 {[%emt 0:00:12] This pair of bishops is nice.} Ra6 {[%emt 0:00:40]} 22. Be3 {[%emt 0:00:18]} Rc8 {[%emt 0:00:02]} 23. Rc1 {[%emt 0:02:56]} Rxc1+ {[%emt 0:00:08]} 24. Bxc1 {[%emt 0:00:04]} Nd7 {[%emt 0:00:13] [#] ...Bd4 is the strong threat.} 25. Be3 {[%emt 0:00:41] Inhibits Bd4.} Nc5 {[%emt 0:02:50]} 26. Rc2 {[%emt 0:02:40]} h5 {[%emt 0:00:34]} 27. Bc4 {[%emt 0:01:13]} Ra3 {[%emt 0:05:20]} 28. Bf2 {[%emt 0:02:09]} Nd3 {[%emt 0:11:38]} 29. Bxd3 {[%emt 0:04:15]} Rxd3 $11 {[%emt 0:00:03][%mdl 4096] Endgame KRB-KRB} 30. Kf1 {[%emt 0:00:23]} f5 {[%emt 0:01:35]} 31. Ke2 {[%emt 0:01:20]} fxe4 {[%emt 0:00:09]} 32. fxe4 {[%emt 0:00:05] The position is equal.} Ra3 {[%emt 0:00:05]} 33. Be3 $1 {[%emt 0:01:27]} Ra4 {[%emt 0:08:24]} 34. Kd3 {[%emt 0:00:13]} Ra3+ {[%emt 0:00:01]} 35. Ke2 {[%emt 0:00:04]} Kf7 {[%emt 0:03:01]} 36. Bc1 $1 {[%emt 0:01:11]} Ra4 {[%emt 0:00:06]} 37. Kd3 {[%emt 0:00:48]} Ke6 {[%emt 0:00:03]} 38. a3 $1 {[%emt 0:03:28]} Rd4+ {[%emt 0:00:17]} 39. Ke3 {[%emt 0:00:12] aiming for Bb2.} Ra4 {[%emt 0:05:09]} 40. Kd3 $1 {[%emt 0:00:15]} Rd4+ {[%emt 0:04:33]} 41. Ke3 {[%emt 0:00:04] Threatens to win with Bb2.} Ra4 {[%emt 0:00:24] An even fight not without its subleties.   Weighted Error Value: White=0.02 (flawless) /Black=0.04 (flawless)} 1/2-1/2

[Event "US Masters 2022"]
[Site "Charlotte"]
[Date "2022.11.25"]
[Round "3.10"]
[White "Petenyi, Tamas"]
[Black "Balakrishnan, Praveen"]
[Result "1/2-1/2"]
[ECO "C77"]
[WhiteElo "2410"]
[BlackElo "2510"]
[Annotator "TA"]
[PlyCount "38"]
[EventDate "2022.11.23"]
[EventType "swiss"]
[EventCountry "USA"]
[SourceTitle "playchess.com"]
[Source "ChessBase"]
[SourceQuality "1"]
[TimeControl "5400+30"]

{[%evp 14,38,-8,-11,-11,-11,22,27,33,44,36,36,28,0,0,0,0,-18,-22,-42,-72,-47,132,66,83,72,81]} 1. e4 {[%emt 0:01:14]} e5 {[%emt 0:07:02]} 2. Nf3 {[%emt 0:00:54]} Nc6 {[%emt 0:00:06]} 3. Bb5 {[%emt 0:02:08][%cal Bf1b5,Bb5a4,Ba4b3][%mdl 32]} a6 {[%emt 0:00:07]} 4. Ba4 {[%emt 0:00:04]} Nf6 {[%emt 0:00:07]} 5. Qe2 {[%emt 0:03:19]} b5 {[%emt 0:01:05]} 6. Bb3 {[%emt 0:00:04]} Bc5 {[%emt 0:01:07]} 7. c3 {[%emt 0:02:31]} d6 {[%emt 0:05:59]} 8. d3 {[%emt 0:02:15]} h6 {[%emt 0:01:28] 8...0-0 is vanishing. C77: Ruy Lopez: 3...a6 4 Ba4 Nf6, unusual lines.} 9. h3 {[%emt 0:03:58]} O-O {[%emt 0:03:05]} 10. g4 {[%emt 0:03:43]} Nh7 {[%emt 0:16:33] [#] White has an edge.} 11. g5 $146 {[%emt 0:06:33]} ({Predecessor:} 11. Bd5 Bd7 12. g5 hxg5 13. Rg1 g4 14. hxg4 Rb8 15. Qf1 Ne7 16. Bb3 Ng6 17. Qh3 {0-1 (41) Delgado Ramirez,N (2623)-Vera Siguenas,D (2483) Antofagasta 2019}) 11... hxg5 {[%emt 0:03:02]} 12. Rg1 {[%emt 0:00:38][%cal Rf3g5]} Be6 {[%emt 0:25:43]} (12... Bxh3 $2 13. Nxg5 Qf6 14. Nxh7 Kxh7 15. Rh1 $18) 13. Bxg5 {[%emt 0:27:43]} (13. Nxg5 {with more complications.} Qf6 14. Nxh7 Kxh7 15. Bg5) 13... Nxg5 {[%emt 0:02:58]} 14. Nxg5 {[%emt 0:00:06] [#] Black must now prevent Qh5.} Qf6 {[%emt 0:01:30]} 15. Nd2 {[%emt 0:20:16]} Qh6 {[%emt 0:06:03] Inhibits Qh5.} 16. O-O-O {[%emt 0:10:18]} Bxb3 {[%emt 0:03:30]} (16... Bxh3 $2 17. Nxh3 Na5 18. Ng5 $18) 17. axb3 {[%emt 0:00:01]} f5 $2 {[%emt 0:01:55] [#]} (17... a5 $15 {stays ahead.} 18. Kc2 (18. d4 $2 exd4 19. cxd4 Nxd4 $19) 18... Bb6) 18. Kb1 {[%emt 0:03:02]} (18. Rg2 $16) 18... Ne7 $14 {[%emt 0:04:36]} 19. Rg2 {[%emt 0:05:15]} Bb6 {[%emt 0:05:44] Weighted Error Value: White=0.14 (very precise) /Black=0.28 (precise)} 1/2-1/2

[Event "US Masters 2022"]
[Site "Charlotte"]
[Date "2022.11.25"]
[Round "3.11"]
[White "Siddharth, Jagadeesh"]
[Black "Budisavljevic, Luka"]
[Result "1/2-1/2"]
[ECO "A61"]
[WhiteElo "2407"]
[BlackElo "2505"]
[Annotator "TA"]
[PlyCount "37"]
[EventDate "2022.11.23"]
[EventType "swiss"]
[EventCountry "USA"]
[SourceTitle "playchess.com"]
[Source "ChessBase"]
[SourceQuality "1"]
[TimeControl "5400+30"]

{[%evp 13,37,32,46,14,41,18,30,32,33,35,30,27,24,22,24,14,22,28,26,16,31,25,39,19,22,23]} 1. d4 {[%emt 0:01:50] ChessBase II} e6 {[%emt 0:06:29]} 2. c4 {[%emt 0:00:08]} c5 {[%emt 0:00:08]} 3. d5 {[%emt 0:00:22]} exd5 {[%emt 1:25:23]} 4. cxd5 {[%emt 0:00:08]} d6 {[%emt 0:00:00]} 5. Nc3 {[%emt 0:00:16]} g6 {[%emt 0:00:00]} 6. Nf3 {[%emt 0:00:43]} Nf6 {[%emt 0:00:00]} 7. Bf4 {[%emt 0:00:09]} Bg7 {[%emt 0:00:00]} 8. e3 {[%emt 0:00:13] A61: Modern Benoni: Nf3 without early e4.} O-O {[%emt 0:00:00]} 9. h3 {[%emt 0:00:05]} Ne8 {[%emt 0:00:00]} 10. Be2 {[%emt 0:00:10] White has an edge.} Nd7 {[%emt 0:00:00]} 11. O-O {[%emt 0:00:08]} Ne5 {[%emt 0:00:00]} 12. Bxe5 {[%emt 0:04:37]} dxe5 {[%emt 0:00:00]} 13. Nd2 {[%emt 0:06:20]} f5 {[%emt 0:00:00] [#]} 14. Nc4 $146 {[%emt 0:03:59]} ({Predecessor:} 14. Qb3 Nd6 15. Nc4 e4 16. Nb5 Nxb5 17. Qxb5 b6 18. d6 Bd7 19. Qb3 b5 20. Nb6+ {0-1 (45) Tal,M-Spassky,B Leningrad 1954 EXT 2000 [ChessBase II]}) 14... Kh8 {[%emt 0:00:00]} 15. a4 {[%emt 0:05:20]} b6 {[%emt 0:00:00]} 16. a5 {[%emt 0:05:14] [#] Strongly threatening axb6.} Ba6 {[%emt 0:00:00]} 17. axb6 {[%emt 0:07:56]} axb6 {[%emt 0:00:00]} 18. Qb3 {[%emt 0:00:23]} Bxc4 {[%emt 0:00:00]} 19. Rxa8 {[%emt 0:01:53] Weighted Error Value: White=0.08 (flawless) /Black=0.03 (flawless)} 1/2-1/2

[Event "US Masters 2022"]
[Site "Charlotte"]
[Date "2022.11.24"]
[Round "3.12"]
[White "Zapata, Alonso"]
[Black "Beradze, Irakli"]
[Result "1/2-1/2"]
[WhiteElo "2336"]
[BlackElo "2494"]
[Annotator "TA"]
[PlyCount "39"]
[EventDate "2022.11.23"]
[EventType "swiss"]
[EventCountry "USA"]
[SourceTitle "playchess.com"]
[Source "ChessBase"]
[SourceQuality "1"]
[TimeControl "5400+30"]

{[%evp 15,16,24,37]} 1. e4 {[%emt 0:01:54]} e5 {[%emt 0:10:14]} 2. Nf3 {[%emt 0:00:15]} Nc6 {[%emt 0:00:05]} 3. Bb5 {[%emt 0:00:11]} a6 {[%emt 0:00:08]} 4. Ba4 {[%emt 0:00:05]} Nf6 {[%emt 0:00:06]} 5. O-O {[%emt 0:00:13]} Be7 {[%emt 0:00:08]} 6. Re1 {[%emt 0:00:17]} b5 {[%emt 0:00:07]} 7. Bb3 {[%emt 0:00:07]} O-O {[%emt 0:00:46]} 8. a4 {[%emt 0:00:53]} Bb7 {[%emt 0:00:19] [#]} {Predecessor:} 9. d3 $146 {C88: Closed Ruy Lopez: Anti-Marshall Systems.} d6 10. Nbd2 Na5 11. Ba2 c5 12. c3 h6 13. h3 Re8 14. Nf1 c4 15. b4 cxb3 16. Bxb3 Nxb3 17. Qxb3 Qd7 18. axb5 axb5 19. Ba3 Bd8 20. Ng3 {½-½ (45) Zhao,J (2619)-Ding,L (2808) Fuling 2022} 1/2-1/2

[Event "US Masters 2022"]
[Site "Charlotte"]
[Date "2022.11.25"]
[Round "3.13"]
[White "Oberoi, Shelev"]
[Black "Neef, Maximilian"]
[Result "1/2-1/2"]
[ECO "C01"]
[WhiteElo "2328"]
[BlackElo "2481"]
[Annotator "TA"]
[PlyCount "72"]
[EventDate "2022.11.23"]
[EventType "swiss"]
[EventCountry "USA"]
[SourceTitle "playchess.com"]
[Source "ChessBase"]
[SourceQuality "1"]
[TimeControl "5400+30"]

{[%evp 9,72,-9,-2,7,2,9,10,26,19,23,35,35,35,37,39,39,38,25,37,24,20,34,72,76,51,38,38,25,20,8,8,29,63,9,15,4,88,0,0,0,0,0,0,0,0,0,0,-14,-14,-15,-12,-11,-4,-5,-5,-5,-3,-2,0,0,0,-3,0,0,0]} 1. e4 {[%emt 0:00:02]} e6 {[%emt 0:00:06]} 2. d4 {[%emt 0:00:08]} d5 {[%emt 0:00:05]} 3. Bd3 {[%emt 0:00:10][%cal Bf1d3,Bd3e4,Be4f3][%mdl 32]} dxe4 {[%emt 0:00:32]} 4. Bxe4 {[%emt 0:00:11]} Nf6 {[%emt 0:00:14]} 5. Bf3 {[%emt 0:00:07]} Nbd7 {[%emt 0:01:11]} 6. Ne2 {[%emt 0:00:09][%cal Bg1e2,Be2g3,Bg3f5,Bf5d6][%mdl 32] C01: French: Exchange Variation.} e5 {[%emt 0:02:54] [#] Hoping for ...e4.} 7. O-O {[%emt 0:00:04]} Bd6 {[%emt 0:01:20] And now ...e4 would win.} ({Don't play} 7... e4 8. Ng3 $15) 8. Ng3 {[%emt 0:03:23] Prevents e4.} O-O {[%emt 0:02:35]} 9. Nf5 {[%emt 0:00:22]} Re8 {[%emt 0:07:51]} 10. Nxd6 {[%emt 0:03:47]} cxd6 {[%emt 0:00:07]} 11. Nc3 {[%emt 0:04:20]} e4 {[%emt 0:12:01]} 12. Be2 {[%emt 0:01:00]} Nf8 {[%emt 0:00:05] [#]} 13. f3 $146 {[%emt 0:07:26]} ({Predecessor:} 13. Bg5 h6 14. Bh4 Ng6 15. Bg3 a6 16. d5 Ne7 17. a4 Nf5 18. Qd2 Bd7 19. Bf4 {1-0 (41) Harshavardhan,G (2362)-Sankalp,G (2369) Mumbai 2019}) 13... exf3 $1 {[%emt 0:04:38]} 14. Bxf3 {[%emt 0:00:58] next Bg5 is good for White.} h6 $1 {[%emt 0:00:28] Inhibits Bg5.} 15. Nd5 {[%emt 0:03:55] Strongly threatening Nxf6+.} N6h7 {[%emt 0:09:15][%cal Bf6h7,Bh7g5,Bg5f3][%mdl 32]} 16. Qd3 {[%emt 0:14:50]} Be6 {[%emt 0:07:08]} 17. Bd2 {[%emt 0:02:24]} Rc8 {[%emt 0:00:55]} 18. Rae1 {[%emt 0:07:24]} (18. b3 {simplifies} Ng5 19. c4 Nxf3+ 20. Qxf3 Bxd5 21. Qxd5 Rc7 22. Rf2) 18... Ng5 {[%emt 0:01:48]} 19. c4 {[%emt 0:08:53]} Nxf3+ {[%emt 0:04:49]} 20. Qxf3 {[%emt 0:00:50]} Qh4 {[%emt 0:07:14]} 21. b3 {[%emt 0:08:48] Active counter play!} ({White should try} 21. Bc3 $14) 21... Qxd4+ $11 {[%emt 0:07:40]} 22. Be3 {[%emt 0:00:33]} Qh4 {[%emt 0:00:20]} (22... Qg4 $11 {remains equal.}) 23. g3 {[%emt 0:09:26]} (23. Bxa7 $2 {too greedy.} Bxd5 24. Bf2 Bxf3 $19) (23. Nf4 $16) 23... Qg4 {[%emt 0:05:00] The position is equal.} 24. Qxg4 {[%emt 0:04:41]} ({Much worse is} 24. Bxa7 Qxf3 25. Rxf3 Bxd5 26. Rxe8 Rxe8 $17) 24... Bxg4 {[%emt 0:00:06]} 25. Bxh6 {[%emt 0:07:18][%mdl 64] [#]} Bh3 {[%emt 0:03:14][%cal Oh3f1]} 26. Rxe8 {[%emt 0:03:01]} Rxe8 {[%emt 0:00:28]} 27. Ra1 {[%emt 0:00:21]} a6 {[%emt 0:09:10]} 28. Bf4 {[%emt 0:00:32]} Re2 {[%emt 0:01:38]} 29. Nc3 {[%emt 0:05:00]} Rg2+ {[%emt 0:01:41]} 30. Kh1 {[%emt 0:00:01]} Ne6 {[%emt 0:01:19] ...Nd4 is the strong threat.} 31. Be3 {[%emt 0:00:39] Inhibits Nd4.} Nc5 {[%emt 0:07:58]} 32. Rg1 {[%emt 0:00:50]} Rb2 {[%emt 0:01:07]} 33. Rb1 {[%emt 0:00:38]} Rc2 {[%emt 0:00:16]} 34. Rc1 $1 {[%emt 0:00:08]} Rb2 {[%emt 0:00:54] White must now prevent ...Nd3.} 35. Rb1 {[%emt 0:00:09]} Rc2 {[%emt 0:00:32]} 36. Rc1 $1 {[%emt 0:00:27]} Rb2 {[%emt 0:00:50] Weighted Error Value: White=0.09 (flawless) /Black=0.08 (flawless)} 1/2-1/2

[Event "US Masters 2022"]
[Site "Charlotte"]
[Date "2022.11.25"]
[Round "3.14"]
[White "Chandra, Akshat"]
[Black "Chen, Ryo"]
[Result "1-0"]
[ECO "B66"]
[WhiteElo "2472"]
[BlackElo "2269"]
[Annotator "TA"]
[PlyCount "99"]
[EventDate "2022.11.23"]
[EventType "swiss"]
[EventCountry "USA"]
[SourceTitle "playchess.com"]
[Source "ChessBase"]
[SourceQuality "1"]
[TimeControl "5400+30"]

{[%evp 16,99,42,37,64,62,60,53,57,58,60,10,24,0,0,0,0,-12,19,19,0,0,-9,-19,-18,-43,-45,-75,-69,-141,-91,-119,-115,-145,-137,-241,-100,-116,-60,-112,-123,-104,-116,-195,-158,-159,0,0,0,0,20,17,84,84,74,-304,-279,-258,-228,-488,-562,-552,-550,-548,-536,-489,-453,-550,-506,-485,-414,-314,52,0,0,0,0,0,437,408,598,579,6442,2523,29993,29994]} 1. e4 {[%emt 0:09:19]} c5 {[%emt 0:00:10]} 2. Nf3 {[%emt 0:00:05]} d6 {[%emt 0:00:11]} 3. d4 {[%emt 0:00:04]} cxd4 {[%emt 0:00:12]} 4. Nxd4 {[%emt 0:00:06]} Nf6 {[%emt 0:00:17]} 5. Nc3 {[%emt 0:00:05]} Nc6 {[%emt 0:00:13]} 6. Bg5 {[%emt 0:00:20]} a6 {[%emt 0:00:52]} 7. Qd2 {[%emt 0:01:45]} Qb6 {[%emt 0:00:14]} 8. Nb3 {[%emt 0:00:30]} e6 {[%emt 0:00:33]} 9. O-O-O {[%emt 0:01:15]} Qc7 {[%emt 0:00:34] B66: Sicilian: Richter-Rauzer: 7...a6 8 0-0-0 h6.} 10. Kb1 {[%emt 0:06:55]} b5 {[%emt 0:01:12]} 11. f4 {[%emt 0:01:47]} Be7 {[%emt 0:03:40] White is slightly better.} 12. Bxf6 {[%emt 0:00:42]} gxf6 {[%emt 0:00:50]} 13. g3 {[%emt 0:05:08] [#]} (13. a3 $14) 13... b4 $146 {[%emt 1:28:02]} ({Predecessor:} 13... Bd7 14. Bg2 O-O-O 15. Qe3 Kb8 16. Rd2 Bc8 17. Rhd1 Bb7 18. Bf3 Rc8 19. Ne2 Rhd8 {0-1 (45) Landers Rodriguez,J (2241)-Balcazar Novoa,L (2318) ICCF email 2006}) 14. Ne2 {[%emt 0:01:41]} e5 {[%emt 0:00:00]} 15. g4 {[%emt 0:06:48]} Bxg4 {[%emt 0:00:00]} 16. Rg1 {[%emt 0:00:45]} Be6 {[%emt 0:00:00]} 17. Ng3 {[%emt 0:07:43][%mdl 1024] White has compensation.} (17. f5 $5 {[%cal Rf5e6]} Bd7 18. Qd5 $11) 17... Qb6 {[%emt 0:00:00]} 18. Be2 {[%emt 0:04:53]} a5 {[%emt 0:00:00][%cal Ba6a5,Ba5a4,Ba4a3,Ba3b2][%mdl 32]} 19. f5 {[%emt 0:01:17] Prevents a4.} Bd7 {[%emt 0:00:00]} 20. Bc4 {[%emt 0:02:27]} a4 {[%emt 0:00:00]} 21. Nc1 {[%emt 0:00:53]} Nd4 {[%emt 0:00:00]} 22. Qh6 {[%emt 0:12:31]} (22. Nh5 $15) 22... Qc5 {[%emt 0:00:00]} (22... Rc8 $142 23. Bd3 Bb5) 23. Bd3 {[%emt 0:06:53]} (23. Qg7 $2 Rf8 24. b3 Bc6 $17) 23... a3 {[%emt 0:00:00]} 24. Nb3 {[%emt 0:00:11]} Qa7 {[%emt 0:00:00] Threatens to win with ...axb2.} (24... Nxb3 $6 25. cxb3 Qf2 26. bxa3 (26. Qd2 Qxd2 27. Rxd2 Rg8 $15) 26... bxa3 27. Ne2 $11) 25. Bc4 {[%emt 0:04:57]} (25. Nxd4 $17 {was worth a try.} Qxd4 26. Qc1) 25... Nf3 {[%emt 0:00:00]} (25... axb2 26. Nxd4 exd4 27. Ne2 $14) (25... Nb5 $1 $19 {And now ...axb2 would win.} 26. Bxb5 Bxb5) 26. Bxf7+ {[%emt 0:08:59][%mdl 64]} Kd8 {[%emt 0:00:00]} (26... Kxf7 $17 27. Nh5 Raf8 28. Rg7+ Ke8 29. Rxe7+ Kxe7 30. Qg7+ Kd8 31. Nxf6 Kc8) 27. Bd5 {[%emt 0:00:18]} Kc7 $1 $17 {[%emt 0:01:44]} (27... Nxg1 $6 28. Bxa8 Qxa8 29. Rxg1 $15) 28. Rgf1 {[%emt 0:10:20]} axb2 $1 {[%emt 0:01:47][%csl Ga8][%cal Ra7a2]} 29. Nc5 {[%emt 0:02:48] [#]} (29. Kxb2 $17 {was forced.} Qxa2+ 30. Kc1 Qa3+ 31. Kb1 Qa2+ 32. Kc1 Qa3+ 33. Kb1 Qa2+ 34. Kc1) 29... dxc5 $1 {[%emt 0:02:43]} 30. Rxf3 {[%emt 0:00:04] [#]} Bb5 $2 {[%emt 0:00:41]} 31. Qg7 $1 $11 {[%emt 0:00:41] Prevents c4. Chess con chili.} Kb6 $40 {[%emt 0:00:14][%cal Oc5c4][%mdl 128] Strongly threatening ...c4! Black is up to no good.} 32. Bxa8 {[%emt 0:01:00]} Rxa8 {[%emt 0:00:26][%csl Ga8][%cal Ra7a2]} 33. Qf7 {[%emt 0:00:01] Active counter play!} Qa6 {[%emt 0:01:24]} 34. Qe6+ $16 {[%emt 0:02:40]} (34. Qxe7 $2 Qxa2#) 34... Bc6 {[%emt 0:00:09][%cal Oc5c4] [#] White must now prevent ...c4!} 35. Qb3 {[%emt 0:00:08][%mdl 8192] [#]} (35. Qxe7 $2 Qxa2#) (35. Kxb2 $2 c4 36. Kc1 (36. Qxe7 $2 c3+ $19) 36... Bc5 $19) (35. a3 $1 $16 {is forced if you want to stay better.} Ra7 36. c4 (36. Kxb2 c4 $17)) 35... c4 $1 $19 {[%emt 0:01:09]} (35... Qa3 36. Qxa3 bxa3 37. c4 $16) 36. Qxb2 {[%emt 0:00:05]} Qb5 {[%emt 0:00:17]} 37. c3 $2 {[%emt 0:01:39]} (37. h4 {keeps fighting.}) 37... Ra3 {[%emt 0:00:17]} 38. Rd2 {[%emt 0:01:15]} b3 {[%emt 0:00:37]} (38... Rxc3 39. a4 Rxf3 40. axb5 $14) 39. Qc1 {[%emt 0:00:24]} Bc5 {[%emt 0:00:45]} (39... bxa2+ 40. Ka1 $11) 40. Rb2 {[%emt 0:00:20]} Kc7 {[%emt 0:00:26]} (40... bxa2+ 41. Ka1 Rb3 42. Rxa2 $11) 41. h4 {[%emt 0:00:47]} Qb7 {[%emt 0:00:31]} (41... bxa2+ 42. Ka1 Qa5 43. Qc2 $11) 42. Qf1 {[%emt 0:00:29]} Qa6 {[%emt 0:00:38][%cal Ra3a2]} (42... Bxe4+ 43. Nxe4 Qxe4+ 44. Ka1 $15) (42... bxa2+ 43. Ka1 Rb3 44. Rxa2 $17 (44. Qxc4 Rxb2 45. Qf7+ Bd7)) 43. Qe2 {[%emt 0:00:23]} Bb5 $2 {[%emt 0:00:28] This pair of bishops is nice.} ({Black should try} 43... Qa8 $19 {...Ra4 is the strong threat.} 44. Ka1 (44. Qxc4 $2 Rxa2 45. Qf7+ Bd7 $19) 44... Ra5) 44. Nf1 {[%emt 0:00:06]} (44. Nh5 $1 $14) 44... Qa8 $11 {[%emt 0:00:23] aiming for ...Bc6.} 45. Rg3 {[%emt 0:00:50]} Kb6 {[%emt 0:00:25]} 46. Rg7 {[%emt 0:00:25]} Qa5 $2 {[%emt 0:00:41][%mdl 8192]} (46... Bd4 $11 {and Black has nothing to worry.} 47. Rg3 (47. cxd4 $2 c3 $19) 47... bxa2+ 48. Rxa2 Rxa2 49. Qxa2 Qxe4+ 50. Qc2 Qf4) 47. Ne3 $18 {[%emt 0:00:46]} (47. Rxh7 Qxc3 48. Rh8 bxa2+ 49. Rxa2 Qb3+ 50. Rb2 Qa4 51. Rxb5+ Kxb5 52. Qb2+ Rb3 53. Rb8+ Bb6 $19) (47. axb3 cxb3) 47... Ka6 {[%emt 0:00:38]} (47... bxa2+ {is a better defense.} 48. Ka1 Rxc3 49. Qxc4 (49. Nxc4+ Rxc4 50. Qxc4 Qe1+ 51. Kxa2 Qa5+ 52. Kb1 Qe1+ 53. Qc1 Qxe4+ 54. Qc2 Qe1+ 55. Qc1 Qe4+ 56. Ka2 Qa4+ 57. Kb1 Qe4+ $11) 49... Bxe3 50. Rxb5+ Qxb5 51. Rb7+ (51. Qxc3 $2 Qb1#) 51... Kxb7 52. Qxb5+ Kc7 53. Qa5+ (53. Kxa2 Rc2+ 54. Kb3 Rc6 $18) 53... Kb7 54. Qb5+ (54. Qxc3 $2 Bd4 $19) 54... Kc7 55. Qa5+ (55. Kxa2 Rc2+ 56. Kb3 Rc6 $18) 55... Kb7 56. Qxa2 (56. Qxc3 $2 Bd4 $19) 56... Rc7) 48. Nd5 {[%emt 0:00:25]} (48. Nxc4 $2 {loses.} Qxc3 49. axb3 Rxb3 50. Rxb3 Qxb3+ 51. Qb2 Qd3+ 52. Qc2 Bxc4 53. Qxd3 Bxd3+ 54. Kc1 Bxe4 55. Rxh7 Bxf5 $19) 48... Bd6 {[%emt 0:00:20]} 49. Qf2 {[%emt 0:00:13]} (49. Qe3 $142 Bd7 50. Rxd7) 49... bxa2+ {[%emt 0:00:36]} 50. Ka1 {[%emt 0:00:15] Weighted Error Value: White=0.33/Black=0.61} 1-0